[Event "45th Sitges Open 2019"]
[Site "Sitges"]
[Date "2019.07.25"]
[Round "4.7"]
[White "Escobar Medina, Andres F"]
[Black "Lacasa Diaz, Jose Antonio"]
[Result "0-1"]
[ECO "D34"]
[WhiteElo "2296"]
[BlackElo "2391"]
[Annotator "NA"]
[PlyCount "122"]
[EventDate "2019.07.21"]
[EventType "swiss"]
[EventCountry "ESP"]
[SourceTitle "playchess.com"]
[Source "ChessBase"]
[SourceQuality "1"]
[TimeControl "40/5400+30:1800+30"]

1. d4 {[%emt 0:00:00]} d5 {[%emt 0:02:02]} 2. c4 {[%emt 0:00:00]} e6 {[%emt 0:00:06]} 3. Nc3 {[%emt 0:00:53]} c5 {[%emt 0:00:11]} 4. cxd5 {[%emt 0:00:42]} exd5 {[%emt 0:00:09]} 5. Nf3 {[%emt 0:01:39]} Nc6 {[%emt 0:00:09]} 6. g3 {[%emt 0:01:12]} Nf6 {[%emt 0:00:12]} 7. Bg2 {[%emt 0:00:08]} Be7 {[%emt 0:00:07]} 8. O-O {[%emt 0:01:51]} O-O {[%emt 0:00:20]} 9. dxc5 {[%emt 0:01:01]} d4 {[%emt 0:03:44]} 10. Na4 {[%emt 0:02:19]} Bf5 {[%emt 0:00:19]} 11. Bf4 {[%emt 0:05:32]} Be4 {[%emt 0:01:41]} 12. a3 {[%emt 0:15:16]} Qd5 {[%emt 0:02:37]} 13. b4 {[%emt 0:03:41]} h6 {[%emt 0:24:10]} 14. Ne1 {[%emt 0:09:43]} Bxg2 {[%emt 0:06:52]} 15. Nxg2 {[%emt 0:00:07]} Rfe8 {[%emt 0:05:13]} 16. Nb2 {[%emt 0:03:53]} Rad8 {[%emt 0:03:54]} 17. Nd3 {[%emt 0:02:27]} Ne4 {[%emt 0:06:06]} 18. Qc2 {[%emt 0:06:19]} Nc3 {[%emt 0:08:33]} 19. Rfe1 {[%emt 0:07:22]} Bf6 {[%emt 0:00:20]} 20. Bd6 {[%emt 0:00:21]} g5 {[%emt 0:00:55]} 21. a4 {[%emt 0:03:47]} a6 {[%emt 0:01:06]} 22. h4 {[%emt 0:03:18]} Re6 {[%emt 0:05:19]} 23. b5 {[%emt 0:02:25]} axb5 {[%emt 0:01:08]} 24. axb5 {[%emt 0:00:04]} Nxb5 {[%emt 0:00:18]} 25. Rab1 {[%emt 0:00:06]} Nc3 {[%emt 0:06:27]} 26. Rxb7 {[%emt 0:00:10]} Rde8 {[%emt 0:00:08]} 27. Nc1 {[%emt 0:09:27]} Ne5 {[%emt 0:01:04]} 28. Bxe5 {[%emt 0:00:37]} Qxb7 {[%emt 0:00:36]} 29. Bxf6 {[%emt 0:00:08]} Rxf6 {[%emt 0:00:09]} 30. e3 {[%emt 0:04:32]} Qd5 {[%emt 0:00:56]} 31. hxg5 {[%emt 0:01:49]} hxg5 {[%emt 0:00:09]} 32. Nb3 {[%emt 0:00:11]} Ne4 {[%emt 0:09:31]} 33. exd4 {[%emt 0:00:07]} Rxf2 {[%emt 0:00:12]} 34. Qxf2 {[%emt 0:00:20]} Nxf2 {[%emt 0:00:06]} 35. Rxe8+ {[%emt 0:00:07]} Kg7 {[%emt 0:00:08]} 36. Kxf2 {[%emt 0:01:04]} Qxb3 {[%emt 0:00:07]} 37. Ne1 {[%emt 0:01:35]} Qc3 {[%emt 0:05:29]} 38. Nf3 {[%emt 0:01:47]} g4 {[%emt 0:00:39]} 39. Re3 {[%emt 0:00:09]} Qc2+ {[%emt 0:00:34]} 40. Re2 {[%emt 0:00:00]} Qf5 {[%emt 0:00:00]} 41. Re3 {[%emt 0:00:17]} Kg6 {[%emt 0:07:35]} 42. Ke2 {[%emt 0:02:04]} gxf3+ {[%emt 0:00:35]} 43. Rxf3 {[%emt 0:00:04]} Qc2+ {[%emt 0:00:07]} 44. Ke3 {[%emt 0:00:05]} Qc3+ {[%emt 0:00:10]} 45. Ke2 {[%emt 0:00:15]} Qxd4 {[%emt 0:00:26]} 46. Rf4 {[%emt 0:00:06]} Qxc5 {[%emt 0:00:14]} 47. Kf3 {[%emt 0:02:07]} Qd5+ {[%emt 0:02:05]} 48. Kf2 {[%emt 0:00:05]} Qd2+ {[%emt 0:02:11]} 49. Kf3 {[%emt 0:00:06]} Qd1+ {[%emt 0:01:42]} 50. Kf2 {[%emt 0:00:09]} f6 {[%emt 0:01:26]} 51. Rh4 {[%emt 0:00:06]} Kg5 {[%emt 0:00:18]} 52. Kg2 {[%emt 0:01:57]} Qe2+ {[%emt 0:00:28]} 53. Kg1 {[%emt 0:00:04]} Kf5 {[%emt 0:06:30]} 54. Rf4+ {[%emt 0:00:17]} Kg6 {[%emt 0:00:05]} 55. Rh4 {[%emt 0:01:10]} Kg5 {[%emt 0:00:16]} 56. Kh1 {[%emt 0:02:21]} Qf2 {[%emt 0:02:32]} 57. Rg4+ {[%emt 0:01:44]} Kf5 {[%emt 0:00:13]} 58. Rg7 {[%emt 0:00:21]} Ke4 {[%emt 0:00:28]} 59. Rg6 {[%emt 0:00:46]} Ke3 {[%emt 0:00:14]} 60. g4 {[%emt 0:00:33]} Ke2 {[%emt 0:03:43]} 61. g5 {[%emt 0:00:05]} Qh4+ {[%emt 0:00:27]} 0-1

[Event "45th Sitges Open 2019"]
[Site "Sitges"]
[Date "2019.07.26"]
[Round "5.4"]
[White "Beltran Rueda, Santiago"]
[Black "Munoz, Miguel"]
[Result "1/2-1/2"]
[ECO "A36"]
[WhiteElo "2326"]
[BlackElo "2511"]
[Annotator "ChessBase"]
[PlyCount "62"]
[EventDate "2019.07.21"]
[EventType "swiss"]
[EventCountry "ESP"]
[SourceTitle "playchess.com"]
[Source "ChessBase"]
[SourceQuality "1"]
[TimeControl "40/5400+30:1800+30"]

1. c4 {[%emt 0:00:00]} c5 {[%emt 0:00:00]} 2. Nc3 {[%emt 0:00:00]} Nc6 {[%emt 0:00:00]} 3. g3 {[%emt 0:00:00]} g6 {[%emt 0:00:09]} 4. Bg2 {[%emt 0:00:00]} Bg7 {[%emt 0:00:09]} 5. e3 e6 {[%emt 0:01:06]} 6. Nge2 {[%emt 0:00:06]} Nge7 {[%emt 0:00:07]} 7. O-O O-O {[%emt 0:05:58]} 8. a3 {[%emt 0:02:41]} d5 {[%emt 0:03:27]} 9. cxd5 {[%emt 0:00:07]} exd5 {[%emt 0:00:08]} 10. d4 {[%emt 0:03:13]} cxd4 {[%emt 0:01:53]} 11. Nxd4 {[%emt 0:00:10]} Be6 {[%emt 0:02:00]} 12. Nxe6 {[%emt 0:03:22]} fxe6 {[%emt 0:04:36]} 13. Na4 {[%emt 0:02:24]} Qd6 {[%emt 0:02:28]} 14. Rb1 {[%emt 0:06:09]} Rac8 {[%emt 0:06:41]} 15. b4 {[%emt 0:02:16]} b6 {[%emt 0:00:50]} 16. Bb2 {[%emt 0:03:29]} Bxb2 {[%emt 0:03:53]} 17. Nxb2 {[%emt 0:00:14]} Nf5 {[%emt 0:00:45]} 18. Nd3 {[%emt 0:06:11]} Ne5 {[%emt 0:01:36]} 19. Nf4 {[%emt 0:00:48]} Ng7 {[%emt 0:04:08]} 20. h4 {[%emt 0:03:12]} Nc4 {[%emt 0:11:13]} 21. Rb3 {[%emt 0:02:30]} a6 {[%emt 0:07:05]} 22. Qe2 {[%emt 0:01:05]} Qe5 {[%emt 0:02:34]} 23. Rd1 {[%emt 0:04:43]} Rfd8 {[%emt 0:04:30]} 24. e4 {[%emt 0:04:53]} d4 {[%emt 0:01:39]} 25. Nd3 {[%emt 0:05:29]} Qb5 {[%emt 0:01:59]} 26. e5 {[%emt 0:01:23]} a5 {[%emt 0:00:40]} 27. a4 {[%emt 0:04:44]} Qxa4 {[%emt 0:01:08]} 28. Rdb1 {[%emt 0:00:37]} Na3 {[%emt 0:14:08]} 29. Qa2 {[%emt 0:01:36]} Rc3 {[%emt 0:03:20]} 30. bxa5 {[%emt 0:00:36]} Qxa5 {[%emt 0:00:35]} 31. Rxb6 {[%emt 0:03:31]} Nc4 {[%emt 0:08:41]} 1/2-1/2

[Event "45th Sitges Open 2019"]
[Site "Sitges"]
[Date "2019.07.26"]
[Round "5.6"]
[White "Oliva Castaneda, Kevel"]
[Black "Ingebretsen, Jens E"]
[Result "1/2-1/2"]
[ECO "C50"]
[WhiteElo "2467"]
[BlackElo "2276"]
[Annotator "ChessBase"]
[PlyCount "49"]
[EventDate "2019.07.21"]
[EventType "swiss"]
[EventCountry "ESP"]
[SourceTitle "playchess.com"]
[Source "ChessBase"]
[SourceQuality "1"]
[TimeControl "40/5400+30:1800+30"]

1. e4 e5 {[%emt 0:03:34]} 2. Nf3 {[%emt 0:00:03]} Nc6 {[%emt 0:00:06]} 3. Bc4 {[%emt 0:00:04]} Bc5 {[%emt 0:00:07]} 4. O-O {[%emt 0:00:14]} Nf6 {[%emt 0:00:06]} 5. d3 {[%emt 0:00:05]} O-O 6. a4 {[%emt 0:01:07]} d6 {[%emt 0:00:41]} 7. c3 {[%emt 0:00:10]} a6 {[%emt 0:00:56]} 8. h3 {[%emt 0:01:16]} Ba7 {[%emt 0:00:43]} 9. Nbd2 {[%emt 0:00:35]} Ne7 {[%emt 0:02:06]} 10. Re1 {[%emt 0:00:41]} c6 {[%emt 0:02:36]} 11. Bb3 {[%emt 0:01:09]} Ng6 {[%emt 0:01:03]} 12. d4 {[%emt 0:00:15]} Qc7 {[%emt 0:08:53]} 13. a5 {[%emt 0:02:14]} Re8 {[%emt 0:06:22]} 14. Bc2 {[%emt 0:02:59]} Be6 {[%emt 0:02:46]} 15. Nf1 {[%emt 0:01:13]} h6 {[%emt 0:01:17]} 16. Ng3 {[%emt 0:01:10]} Rad8 {[%emt 0:00:26]} 17. Be3 {[%emt 0:02:28]} d5 {[%emt 0:09:27]} 18. Nxe5 {[%emt 0:26:39]} Nxe5 {[%emt 0:02:27]} 19. dxe5 {[%emt 0:00:05]} dxe4 {[%emt 0:10:29]} 20. Qe2 {[%emt 0:03:40]} Bxe3 {[%emt 0:00:22]} 21. Qxe3 {[%emt 0:00:06]} Qxe5 {[%emt 0:00:31]} 22. Nxe4 {[%emt 0:00:28]} Nxe4 {[%emt 0:00:37]} 23. Bxe4 {[%emt 0:00:09]} Qg5 {[%emt 0:02:18]} 24. b4 {[%emt 0:03:18]} Qxe3 {[%emt 0:01:46]} 25. Rxe3 {[%emt 0:00:13]} 1/2-1/2

[Event "45th Sitges Open 2019"]
[Site "Sitges"]
[Date "2019.07.27"]
[Round "6.3"]
[White "Munoz, Miguel"]
[Black "Sreeshwan, Maralakshikari"]
[Result "1/2-1/2"]
[ECO "B10"]
[WhiteElo "2511"]
[BlackElo "2461"]
[Annotator "ChessBase"]
[PlyCount "41"]
[EventDate "2019.07.21"]
[EventType "swiss"]
[EventCountry "ESP"]
[SourceTitle "playchess.com"]
[Source "ChessBase"]
[SourceQuality "1"]
[TimeControl "40/5400+30:1800+30"]

1. e4 {[%emt 0:13:19]} c6 {[%emt 0:00:00]} 2. Nc3 {[%emt 0:00:08]} d5 {[%emt 0:00:00]} 3. Nf3 {[%emt 0:00:07]} dxe4 {[%emt 0:00:00]} 4. Nxe4 {[%emt 0:00:05]} Nf6 {[%emt 0:00:00]} 5. Qe2 {[%emt 0:00:07]} Nxe4 {[%emt 0:00:02]} 6. Qxe4 {[%emt 0:00:06]} Qd5 {[%emt 0:00:05]} 7. Qf4 {[%emt 0:01:53]} Qf5 {[%emt 0:00:05]} 8. Qxf5 {[%emt 0:01:19]} Bxf5 {[%emt 0:00:06]} 9. Nd4 {[%emt 0:00:20]} Be4 {[%emt 0:03:27]} 10. d3 {[%emt 0:05:30]} Bg6 {[%emt 0:00:35]} 11. Be2 {[%emt 0:00:55]} e5 {[%emt 0:00:51]} 12. Nb3 {[%emt 0:00:12]} Nd7 {[%emt 0:01:07]} 13. Bd2 {[%emt 0:00:08]} Bd6 {[%emt 0:00:57]} 14. Na5 {[%emt 0:00:58]} O-O-O {[%emt 0:00:23]} 15. O-O-O {[%emt 0:02:58]} Nb6 {[%emt 0:02:09]} 16. Bf3 {[%emt 0:06:37]} Bc5 {[%emt 0:02:39]} 17. Rde1 {[%emt 0:05:22]} Rhe8 {[%emt 0:01:15]} 18. Re2 {[%emt 0:00:33]} Bf5 {[%emt 0:03:56]} 19. Rhe1 {[%emt 0:10:49]} f6 {[%emt 0:00:18]} 20. h3 {[%emt 0:00:38]} Re7 {[%emt 0:04:01]} 21. Nb3 {[%emt 0:06:51]} 1/2-1/2

[Event "45th Sitges Open 2019"]
[Site "Sitges"]
[Date "2019.07.27"]
[Round "6.4"]
[White "Sturt, Raven"]
[Black "Beltran Rueda, Santiago"]
[Result "0-1"]
[ECO "B31"]
[WhiteElo "2429"]
[BlackElo "2326"]
[Annotator "RC"]
[PlyCount "144"]
[EventDate "2019.07.21"]
[EventType "swiss"]
[EventCountry "ESP"]
[SourceTitle "playchess.com"]
[Source "ChessBase"]
[SourceQuality "1"]
[TimeControl "40/5400+30:1800+30"]

1. e4 {[%emt 0:00:00]} c5 {[%emt 0:00:00]} 2. Nf3 {[%emt 0:00:00]} Nc6 {[%emt 0:00:00]} 3. Bb5 {[%emt 0:00:55]} g6 {[%emt 0:00:01]} 4. O-O {[%emt 0:00:14]} Bg7 {[%emt 0:00:10]} 5. Re1 {[%emt 0:02:17]} Nf6 {[%emt 0:00:26]} 6. Nc3 {[%emt 0:01:35]} O-O {[%emt 0:01:09]} 7. e5 {[%emt 0:02:36]} Ng4 {[%emt 0:02:03]} 8. Bxc6 {[%emt 0:01:16]} dxc6 {[%emt 0:00:21]} 9. d3 {[%emt 0:04:49]} Nh6 {[%emt 0:00:52]} 10. Be3 {[%emt 0:14:20]} b6 {[%emt 0:00:40]} 11. d4 {[%emt 0:01:38]} cxd4 {[%emt 0:02:24]} 12. Nxd4 {[%emt 0:04:31]} Bb7 {[%emt 0:18:19]} 13. Bxh6 {[%emt 0:10:20]} Bxh6 {[%emt 0:00:11]} 14. Qg4 {[%emt 0:00:07]} Bg7 {[%emt 0:04:53]} 15. Rad1 {[%emt 0:06:57]} Qc7 {[%emt 0:01:22]} 16. h4 {[%emt 0:02:22]} h5 {[%emt 0:21:24]} 17. Qg3 {[%emt 0:02:29]} Rad8 {[%emt 0:00:23]} 18. f4 {[%emt 0:02:55]} Bc8 {[%emt 0:04:54]} 19. Qf3 {[%emt 0:06:25]} Bb7 {[%emt 0:04:03]} 20. Qg3 {[%emt 0:03:49]} Qc8 {[%emt 0:02:11]} 21. Nf3 {[%emt 0:02:54]} Qf5 {[%emt 0:09:16]} 22. Nd4 {[%emt 0:01:32]} Qc8 {[%emt 0:00:20]} 23. b4 {[%emt 0:01:22]} c5 {[%emt 0:00:44]} 24. bxc5 {[%emt 0:00:05]} Qxc5 {[%emt 0:00:40]} 25. Qe3 {[%emt 0:00:11]} Qc4 {[%emt 0:05:51]} 26. Nce2 {[%emt 0:08:22]} Rd5 {[%emt 0:01:30]} 27. c3 {[%emt 0:02:39]} Ra5 {[%emt 0:01:56]} 28. Qg3 {[%emt 0:00:50]} e6 {[%emt 0:01:21]} 29. Nc1 {[%emt 0:01:33]} Rc8 {[%emt 0:01:22]} 30. Re3 {[%emt 0:00:26]} Ra3 {[%emt 0:01:09]} 31. Ndb3 {[%emt 0:01:35]} Bd5 {[%emt 0:01:07]} 32. Rd4 {[%emt 0:01:30]} Qc6 {[%emt 0:00:50]} 33. Kh2 {[%emt 0:04:25]} a5 {[%emt 0:02:23]} 34. Rd2 {[%emt 0:01:21]} Ra4 {[%emt 0:02:00]} 35. Nd4 {[%emt 0:00:50]} Qc4 {[%emt 0:01:08]} 36. Rb2 Bf8 {[%emt 0:03:46]} 37. Ncb3 {[%emt 0:07:24]} Kh7 {[%emt 0:03:38]} 38. Nd2 {[%emt 0:00:35]} Qc7 {[%emt 0:00:34]} 39. Ne4 {[%emt 0:00:32]} Bxe4 {[%emt 0:00:38]} 40. Rxe4 {[%emt 0:00:00]} Qxc3 {[%emt 0:00:00]} 41. Qxc3 {[%emt 0:04:22]} Rxc3 {[%emt 0:01:21]} 42. Nxe6 {[%emt 0:00:19]} Rxe4 {[%emt 0:00:51]} 43. Ng5+ {[%emt 0:00:04]} Kg7 {[%emt 0:00:17]} 44. Nxe4 {[%emt 0:00:06]} Rc4 {[%emt 0:00:23]} 45. Re2 {[%emt 0:01:55]} b5 {[%emt 0:00:48]} 46. Kg3 {[%emt 0:02:28]} Be7 {[%emt 0:02:02]} 47. Kf3 {[%emt 0:05:19]} Bxh4 {[%emt 0:00:47]} 48. Nd6 {[%emt 0:00:05]} Rc3+ {[%emt 0:01:44]} 49. Ke4 {[%emt 0:00:05]} b4 {[%emt 0:00:27]} 50. f5 {[%emt 0:03:01]} Rc1 {[%emt 0:03:21]} 51. f6+ {[%emt 0:01:03]} Kg8 {[%emt 0:01:34]} 52. Kd5 {[%emt 0:04:25]} Bg3 {[%emt 0:02:37]} 53. Nb7 {[%emt 0:06:00]} a4 {[%emt 0:04:09]} 54. Nc5 {[%emt 0:00:02]} a3 {[%emt 0:03:41]} 55. Nd3 {[%emt 0:00:54]} Rb1 {[%emt 0:01:38]} 56. Kc4 {[%emt 0:01:30]} h4 {[%emt 0:00:35]} 57. Nxb4 {[%emt 0:00:11]} Rb2 {[%emt 0:00:13]} 58. Re3 {[%emt 0:05:16]} Rxg2 {[%emt 0:00:16]} 59. Nd5 {[%emt 0:00:05]} h3 {[%emt 0:06:42]} 60. Ne7+ Kh7 {[%emt 0:00:57]} 61. e6 {[%emt 0:00:20]} h2 {[%emt 0:00:19]} 62. exf7 {[%emt 0:01:22]} h1=Q {[%emt 0:00:20]} 63. f8=Q {[%emt 0:00:10]} Qc1+ {[%emt 0:02:34]} 64. Kb5 {[%emt 0:01:33]} Qf1+ {[%emt 0:02:22]} 65. Kb6 {[%emt 0:01:01]} Rb2+ {[%emt 0:00:48]} 66. Ka7 {[%emt 0:00:24]} Bb8+ {[%emt 0:00:37]} 67. Qxb8 {[%emt 0:00:04]} Rxb8 {[%emt 0:00:18]} 68. Kxb8 {[%emt 0:02:47]} Qf4+ {[%emt 0:00:10]} 69. Kc8 {[%emt 0:00:04]} Qxe3 {[%emt 0:00:10]} 70. Kd7 {[%emt 0:00:06]} Qd2+ {[%emt 0:00:50]} 71. Ke8 {[%emt 0:00:20]} Qxa2 {[%emt 0:00:18]} 72. f7 {[%emt 0:00:07]} Qxf7+ {[%emt 0:00:12]} 0-1

[Event "45th Sitges Open 2019"]
[Site "Sitges"]
[Date "2019.07.29"]
[Round "8.2"]
[White "Harikrishnan.A.Ra"]
[Black "Berdayes Ason, Dylan Isidro"]
[Result "1/2-1/2"]
[ECO "B57"]
[WhiteElo "2401"]
[BlackElo "2461"]
[Annotator "ChessBase"]
[PlyCount "46"]
[EventDate "2019.07.21"]
[EventType "swiss"]
[EventCountry "ESP"]
[SourceTitle "playchess.com"]
[Source "ChessBase"]
[SourceQuality "1"]
[TimeControl "40/5400+30:1800+30"]

1. e4 {[%emt 0:00:00]} c5 {[%emt 0:04:02]} 2. Nf3 {[%emt 0:00:00]} Nc6 {[%emt 0:00:26]} 3. d4 {[%emt 0:00:00]} cxd4 {[%emt 0:00:02]} 4. Nxd4 {[%emt 0:00:04]} Nf6 {[%emt 0:00:05]} 5. Nc3 {[%emt 0:00:03]} d6 {[%emt 0:00:05]} 6. Bc4 {[%emt 0:00:13]} Bd7 {[%emt 0:00:47]} 7. Be3 {[%emt 0:01:28]} Ng4 {[%emt 0:00:07]} 8. Nxc6 {[%emt 0:06:29]} bxc6 {[%emt 0:00:19]} 9. Bc1 {[%emt 0:00:51]} g6 {[%emt 0:00:58]} 10. h3 {[%emt 0:00:48]} Nf6 {[%emt 0:00:09]} 11. O-O {[%emt 0:00:40]} Bg7 {[%emt 0:00:02]} 12. Be3 {[%emt 0:05:42]} O-O {[%emt 0:00:23]} 13. Qd2 {[%emt 0:02:18]} Qc7 {[%emt 0:01:25]} 14. Bh6 {[%emt 0:02:52]} Rab8 {[%emt 0:01:11]} 15. Bxg7 {[%emt 0:00:19]} Kxg7 {[%emt 0:00:06]} 16. b3 {[%emt 0:00:50]} Rbd8 {[%emt 0:06:01]} 17. Rad1 {[%emt 0:01:24]} Bc8 {[%emt 0:03:11]} 18. Rfe1 {[%emt 0:03:03]} e5 {[%emt 0:16:05]} 19. f4 {[%emt 0:12:59]} Nh5 {[%emt 0:10:22]} 20. fxe5 {[%emt 0:03:33]} dxe5 {[%emt 0:00:03]} 21. Qf2 {[%emt 0:00:55]} Qe7 {[%emt 0:01:22]} 22. Ne2 {[%emt 0:01:54]} Nf6 {[%emt 0:04:43]} 23. Ng3 {[%emt 0:04:03]} c5 {[%emt 0:15:17]} 1/2-1/2

[Event "45th Sitges Open 2019"]
[Site "Sitges"]
[Date "2019.07.29"]
[Round "8.5"]
[White "Sturt, Raven"]
[Black "Valderrama Quiceno, Esteban Alb"]
[Result "1-0"]
[ECO "D02"]
[WhiteElo "2429"]
[BlackElo "2423"]
[Annotator "NA"]
[PlyCount "59"]
[EventDate "2019.07.21"]
[EventType "swiss"]
[EventCountry "ESP"]
[SourceTitle "playchess.com"]
[Source "ChessBase"]
[SourceQuality "1"]
[TimeControl "40/5400+30:1800+30"]

1. d4 {[%emt 0:00:00]} d5 {[%emt 0:03:23]} 2. Nf3 {[%emt 0:00:58]} Nf6 {[%emt 0:00:46]} 3. Bf4 {[%emt 0:00:14]} c5 {[%emt 0:23:59]} 4. e3 {[%emt 0:00:39]} Nc6 {[%emt 0:09:06]} 5. Nbd2 {[%emt 0:00:17]} Qb6 {[%emt 0:03:00]} 6. dxc5 {[%emt 0:00:07]} Qxb2 {[%emt 0:06:42]} 7. Rb1 {[%emt 0:00:18]} Qc3 {[%emt 0:04:40]} 8. Bb5 {[%emt 0:01:51]} e6 {[%emt 0:12:01]} 9. O-O {[%emt 0:08:32]} Qxc5 {[%emt 0:24:22]} 10. c4 {[%emt 0:07:34]} Be7 {[%emt 0:01:22]} 11. Nb3 {[%emt 0:04:20]} Qa3 {[%emt 0:01:29]} 12. Ne5 {[%emt 0:00:31]} O-O {[%emt 0:02:25]} 13. Nxc6 {[%emt 0:08:51]} bxc6 {[%emt 0:00:01]} 14. Bxc6 {[%emt 0:00:05]} Ba6 {[%emt 0:00:06]} 15. Bxa8 Rxa8 {[%emt 0:00:00]} 16. Qc2 {[%emt 0:16:19]} dxc4 {[%emt 0:00:25]} 17. Nd4 {[%emt 0:00:08]} Nd5 {[%emt 0:00:11]} 18. Nc6 {[%emt 0:02:32]} Bf8 {[%emt 0:00:54]} 19. Nb8 {[%emt 0:02:22]} c3 {[%emt 0:00:26]} 20. Rb3 Qa4 {[%emt 0:00:37]} 21. Nxa6 {[%emt 0:07:48]} Qxa6 {[%emt 0:00:01]} 22. Rb8 {[%emt 0:00:12]} Rxb8 {[%emt 0:00:58]} 23. Bxb8 {[%emt 0:00:02]} Qc4 {[%emt 0:01:51]} 24. Rc1 {[%emt 0:07:46]} Ba3 {[%emt 0:00:32]} 25. Rd1 {[%emt 0:00:01]} h5 {[%emt 0:01:50]} 26. Be5 {[%emt 0:02:32]} Bb2 {[%emt 0:00:55]} 27. e4 {[%emt 0:01:04]} Nb4 {[%emt 0:00:26]} 28. Rd8+ {[%emt 0:00:01]} Kh7 {[%emt 0:00:01]} 29. Qd1 {[%emt 0:00:07]} Kg6 {[%emt 0:01:18]} 30. Rh8 {[%emt 0:00:10]} 1-0

[Event "45th Sitges Open 2019"]
[Site "Sitges"]
[Date "2019.07.29"]
[Round "8.6"]
[White "Lacasa Diaz, Jose Antonio"]
[Black "Beltran Rueda, Santiago"]
[Result "1/2-1/2"]
[ECO "A06"]
[WhiteElo "2391"]
[BlackElo "2326"]
[Annotator "NA"]
[PlyCount "23"]
[EventDate "2019.07.21"]
[EventType "swiss"]
[EventCountry "ESP"]
[SourceTitle "playchess.com"]
[Source "ChessBase"]
[SourceQuality "1"]
[TimeControl "40/5400+30:1800+30"]

1. Nf3 {[%emt 0:03:40]} d5 {[%emt 0:00:35]} 2. b3 {[%emt 0:01:13]} Bg4 {[%emt 0:06:20]} 3. Bb2 {[%emt 0:02:27]} Bxf3 {[%emt 0:02:04]} 4. exf3 {[%emt 0:00:08]} e6 {[%emt 0:01:56]} 5. g3 {[%emt 0:00:21]} Nf6 {[%emt 0:00:42]} 6. Bg2 {[%emt 0:00:11]} Bd6 {[%emt 0:01:26]} 7. f4 {[%emt 0:01:19]} O-O {[%emt 0:00:21]} 8. O-O {[%emt 0:00:41]} Nbd7 {[%emt 0:02:56]} 9. d3 {[%emt 0:03:51]} c6 {[%emt 0:02:12]} 10. Nd2 {[%emt 0:01:32]} e5 {[%emt 0:06:37]} 11. fxe5 {[%emt 0:01:37]} Bxe5 {[%emt 0:00:08]} 12. Bxe5 {[%emt 0:01:45]} 1/2-1/2

[Event "45th Sitges Open 2019"]
[Site "Sitges"]
[Date "2019.07.30"]
[Round "9.2"]
[White "Munoz, Miguel"]
[Black "Volkov, Sergey"]
[Result "1/2-1/2"]
[ECO "C06"]
[WhiteElo "2511"]
[BlackElo "2548"]
[Annotator "RC"]
[PlyCount "24"]
[EventDate "2019.07.21"]
[EventType "swiss"]
[EventCountry "ESP"]
[SourceTitle "playchess.com"]
[Source "ChessBase"]
[SourceQuality "1"]
[TimeControl "40/5400+30:1800+30"]

1. e4 {[%emt 0:00:00]} e6 {[%emt 0:00:00]} 2. d4 {[%emt 0:00:00]} d5 {[%emt 0:00:00]} 3. Nd2 {[%emt 0:00:00]} Nf6 {[%emt 0:00:00]} 4. e5 {[%emt 0:00:00]} Nfd7 {[%emt 0:00:00]} 5. Bd3 {[%emt 0:00:30]} c5 {[%emt 0:00:01]} 6. c3 {[%emt 0:00:06]} Nc6 {[%emt 0:00:04]} 7. Ne2 {[%emt 0:00:07]} cxd4 {[%emt 0:00:06]} 8. cxd4 {[%emt 0:00:04]} f6 {[%emt 0:00:06]} 9. exf6 {[%emt 0:00:10]} Nxf6 {[%emt 0:00:06]} 10. O-O {[%emt 0:00:10]} Bd6 {[%emt 0:00:06]} 11. Nf3 {[%emt 0:00:13]} O-O {[%emt 0:00:10]} 12. Bf4 {[%emt 0:00:05]} Bxf4 {[%emt 0:00:08]} 1/2-1/2